bitfinex/quotes_SOLUSD_20220104
["timestamp","ask_amount","ask_price","bid_price","bid_amount"]
[1641267562036,1.7984,167.79,167.7,21.56002103]
[1641267562237,0.5,167.79,167.7,22.98671471]
[1641267562436,4.32503717,167.82,167.7,22.98671471]
[1641267565142,4.32503717,167.82,167.7,28.41171471]
[1641267566043,3.82503717,167.82,167.7,28.41171471]
[1641267567044,3.82503717,167.82,167.71,23.9657]
[1641267567444,3.82503717,167.82,167.71,24.7257]
[1641267568045,3.82503717,167.82,167.72,1.2491]
[1641267568345,3.82503717,167.82,167.72,1.7491]
[1641267568546,3.82503717,167.82,167.72,2.0091]
[1641267570045,22.7279,167.81,167.72,2.0091]
[1641267571445,22.7279,167.81,167.71,23.9657]
[1641267571650,22.9879,167.81,167.71,24.4657]
[1641267571850,23.4879,167.81,167.71,23.9657]
[1641267572050,22.9879,167.81,167.71,23.9657]
[1641267572348,23.4879,167.81,167.71,23.9657]
[1641267572748,23.4879,167.81,167.71,24.2257]
[1641267572949,23.4879,167.81,167.71,24.7257]
[1641267573148,23.4879,167.81,167.71,0.76]
[1641267573352,25.16461382,167.81,167.71,0.76]
[1641267573550,25.16461382,167.81,167.7,20.28932103]
[1641267574552,1.318,167.8,167.7,20.28932103]
[1641267574950,1.818,167.8,167.7,20.28932103]
[1641267575557,3.49471382,167.8,167.7,20.28932103]
[1641267575759,22.6922,167.79,167.7,20.28932103]
[1641267575960,23.1922,167.79,167.7,19.78932103]
[1641267577063,22.6922,167.79,167.7,20.28932103]
[1641267590196,51.47879486,167.79,167.7,20.28932103]
[1641267590794,51.47879486,167.79,167.7,0.76]
[1641267590996,51.47879486,167.79,167.7,0.5]
[1641267591196,51.97879486,167.79,167.69,2.0346973]
[1641267592398,1.2535,167.78,167.69,2.0346973]
[1641267593599,1.7535,167.78,167.69,2.0346973]
[1641267594402,1.2535,167.78,167.69,2.0346973]
[1641267598407,1.7535,167.78,167.69,2.0346973]
[1641267601311,2.0135,167.78,167.69,2.0346973]
[1641267602913,1.5135,167.78,167.69,2.0346973]
[1641267604116,1.5135,167.78,167.69,9.73e-05]
[1641267604316,10.5735,167.78,167.69,9.73e-05]
[1641267604515,22.9464,167.77,167.69,9.73e-05]
[1641267604915,23.7064,167.77,167.69,9.73e-05]
[1641267605718,1.2498,167.76,167.69,9.73e-05]
[1641267605917,1.7498,167.76,167.69,9.73e-05]
[1641267606116,2.0098,167.76,167.69,9.73e-05]
[1641267608142,4.83841513,167.76,167.69,9.73e-05]
[1641267608740,23.2493,167.75,167.69,9.73e-05]
[1641267608943,23.7493,167.75,167.69,9.73e-05]
[1641267609141,8.56,167.74,167.69,9.73e-05]
[1641267609343,24.7765,167.73,167.69,9.73e-05]
[1641267609542,1.3756,167.72,167.69,9.73e-05]
[1641267609942,2.1356,167.72,167.69,9.73e-05]
[1641267610145,6.06439994,167.71,167.69,9.73e-05]
[1641267610344,6.56439994,167.71,167.69,9.73e-05]
[1641267610744,6.06439994,167.71,167.69,9.73e-05]
[1641267611845,24.2635,167.7,167.69,9.73e-05]
[1641267612445,25.5953,167.7,167.69,9.73e-05]
[1641267615058,34.9153,167.7,167.69,9.73e-05]
[1641267615256,61.9153,167.7,167.69,9.73e-05]
[1641267615557,34.9153,167.7,167.69,9.73e-05]
[1641267616354,36.59201382,167.7,167.69,9.73e-05]
[1641267617359,79.59201382,167.7,167.69,9.73e-05]
[1641267618163,34.9153,167.7,167.69,9.73e-05]
[1641267619363,66.9153,167.7,167.69,9.73e-05]
[1641267620668,34.9153,167.7,167.69,9.73e-05]
[1641267622768,34.6553,167.7,167.69,9.73e-05]
[1641267622969,34.1553,167.7,167.69,9.73e-05]
[1641267623367,34.6553,167.7,167.69,9.73e-05]
[1641267624367,34.9153,167.7,167.69,9.73e-05]
[1641267634404,7.69527061,167.71,167.69,9.73e-05]
[1641267635512,6.06439994,167.71,167.69,9.73e-05]
[1641267635712,26.33177067,167.73,167.69,9.73e-05]
[1641267636614,24.7009,167.73,167.69,9.73e-05]
[1641267657231,1.3208,167.72,167.69,9.73e-05]
[1641267657835,6.06439994,167.71,167.69,9.73e-05]
[1641267662764,6.56439994,167.71,167.69,9.73e-05]
[1641267662966,23.8038,167.7,167.69,9.73e-05]
[1641267663366,24.3038,167.7,167.69,9.73e-05]
[1641267663565,24.5638,167.7,167.69,9.73e-05]
[1641267663766,25.8798,167.7,167.69,9.73e-05]
[1641267664565,25.1198,167.7,167.69,9.73e-05]
[1641267664766,25.6198,167.7,167.69,9.73e-05]
[1641267665567,25.8798,167.7,167.69,9.73e-05]
[1641267665969,25.6198,167.7,167.69,9.73e-05]
[1641267666969,25.1198,167.7,167.69,9.73e-05]
[1641267667170,23.8038,167.7,167.69,9.73e-05]
[1641267667368,6.06439994,167.71,167.69,9.73e-05]
[1641267667970,10.19087067,167.76,167.69,9.73e-05]
[1641267668168,1.63087067,167.76,167.69,9.73e-05]
[1641267668369,24.0883,167.78,167.69,9.73e-05]
[1641267668570,1.3719,167.77,167.69,9.73e-05]
[1641267669972,2.86506158,167.76,167.69,9.73e-05]
[1641267670372,3.62506158,167.76,167.69,9.73e-05]
[1641267670573,0.76,167.76,167.69,9.73e-05]
[1641267670773,1.2698,167.75,167.69,9.73e-05]
[1641267670972,1.7698,167.75,167.69,9.73e-05]
[1641267674075,1.2698,167.75,167.69,9.73e-05]
[1641267674479,25.71917067,167.78,167.69,9.73e-05]
[1641267674875,24.0883,167.78,167.69,9.73e-05]
[1641267675075,25.3887,167.78,167.69,9.73e-05]
[1641267679980,26.1487,167.78,167.69,9.73e-05]
[1641267681182,8.56,167.77,167.69,9.73e-05]
[1641267681383,9.06,167.77,167.69,9.73e-05]
[1641267681584,9.32,167.77,167.69,9.73e-05]
[1641267681784,23.3327,167.76,167.69,9.73e-05]
[1641267681987,24.0927,167.76,167.69,9.73e-05]
[1641267682187,3.87723187,167.75,167.69,9.73e-05]
[1641267682387,23.3379,167.74,167.69,9.73e-05]
[1641267682688,23.5979,167.74,167.69,9.73e-05]
[1641267682886,24.0979,167.74,167.69,9.73e-05]
[1641267683492,1.3234,167.73,167.69,9.73e-05]
[1641267683895,2.0834,167.73,167.69,9.73e-05]
[1641267685092,1.5834,167.73,167.69,9.73e-05]
[1641267685494,2.0834,167.73,167.69,9.73e-05]
[1641267685693,1.5834,167.73,167.69,9.73e-05]
[1641267686093,1.3234,167.73,167.69,9.73e-05]
[1641267689521,1.2483,167.79,167.69,9.73e-05]
[1641267689728,23.0791,167.8,167.69,8.5600973]
[1641267690020,23.0791,167.8,167.7,1.2624]
[1641267690423,23.0791,167.8,167.7,2.0224]
[1641267690622,3.03304403,167.81,167.71,19.02758361]
[1641267691120,3.03304403,167.81,167.71,0.76]
[1641267691421,3.29304403,167.81,167.71,0.76]
[1641267691621,4.65764403,167.81,167.7,2.0224]
[1641267693623,4.39764403,167.81,167.7,2.0224]
[1641267695526,4.65764403,167.81,167.7,2.0224]
[1641267695924,5.15764403,167.81,167.7,2.0224]
[1641267698226,24.0801,167.8,167.7,2.0224]
[1641267698427,24.5801,167.8,167.7,2.0224]
[1641267698728,24.3401,167.8,167.7,2.0224]
[1641267700129,24.3401,167.8,167.7,1.7624]
[1641267700527,24.8401,167.8,167.7,1.7624]
[1641267700729,24.8401,167.8,167.7,0.5]
[1641267700930,24.3401,167.8,167.69,9.73e-05]
[1641267701431,24.3401,167.8,167.69,1.3764973]
[1641267701828,24.0801,167.8,167.69,1.8764973]
[1641267702029,24.0801,167.8,167.69,2.1364973]
[1641267702633,25.3785,167.8,167.69,2.1364973]
[1641267703230,25.6385,167.8,167.69,2.1364973]
[1641267704129,25.3785,167.8,167.69,2.1364973]
[1641267704530,25.3785,167.8,167.69,25.3268973]
[1641267706529,24.0801,167.8,167.69,25.3268973]
[1641267706729,3.03304403,167.81,167.69,25.3268973]
[1641267706929,3.29304403,167.81,167.69,25.3268973]
[1641267707629,24.3147,167.83,167.7,8.56]
[1641267707833,1.63087067,167.85,167.7,8.56]
[1641267708029,26.1521,167.86,167.71,25.13539368]
[1641267708230,26.1521,167.86,167.72,8.56]
[1641267708430,26.1521,167.86,167.73,25.1569]
[1641267708631,2.75215405,167.85,167.73,25.1569]
[1641267708829,2.75215405,167.85,167.73,25.9169]
[1641267709029,23.2581,167.84,167.73,25.9169]
[1641267709533,23.2581,167.84,167.73,25.6569]
[1641267709730,31.2901,167.84,167.73,1.2799]
[1641267710029,1.3175,167.83,167.7,98.7673]
[1641267710231,1.3175,167.83,167.71,1.2631]
[1641267710435,2.0775,167.83,167.71,1.7631]
[1641267710630,12.26837067,167.83,167.71,1.7631]
[1641267710831,23.1938,167.82,167.71,1.2631]
[1641267711031,23.4538,167.82,167.71,1.2631]
[1641267711231,25.58467067,167.82,167.71,1.7631]
[1641267711829,25.58467067,167.82,167.71,2.0231]
[1641267712032,25.63794096,167.8,167.71,2.0231]
[1641267712432,2.49883612,167.79,167.71,2.0231]
[1641267712832,2.75883612,167.79,167.71,2.0231]
[1641267715332,2.75883612,167.79,167.71,1.5231]
[1641267715834,2.75883612,167.79,167.71,2.0231]
[1641267718238,4.11443612,167.79,167.71,2.0231]
[1641267719736,4.11443612,167.79,167.71,1.5231]
[1641267720035,3.85443612,167.79,167.71,1.5231]
[1641267720235,3.85443612,167.79,167.71,2.0231]
[1641267720838,3.85443612,167.79,167.71,0.5]
[1641267721236,27.34003612,167.79,167.69,0.5000973]
[1641267721436,27.60003612,167.79,167.69,9.73e-05]
[1641267722436,24.8412,167.79,167.69,9.73e-05]
[1641267722637,1.63087067,167.82,167.69,9.73e-05]
[1641267722837,2.13087067,167.82,167.69,24.32359098]
[1641267723037,2.13087067,167.82,167.7,8.56]
[1641267723440,2.26052815,167.81,167.7,9.32]
[1641267723838,2.76052815,167.81,167.71,2.76639368]
[1641267724043,2.76052815,167.81,167.71,11.58639368]
[1641267724244,2.76052815,167.81,167.72,1.42669368]
[1641267724439,1.2521,167.82,167.72,1.92669368]
[1641267724639,1.63087067,167.85,167.72,10.74669368]
[1641267724840,1.63087067,167.85,167.73,1.42669368]
[1641267725041,1.63087067,167.85,167.73,1.68669368]
[1641267725239,1.3023,167.86,167.73,2.18669368]
[1641267725440,2.49711812,167.85,167.74,2.70959368]
[1641267725640,2.49711812,167.85,167.75,21.8215441]
[1641267725842,29.68080297,167.89,167.75,23.74823778]
[1641267726146,1.63087067,167.89,167.76,9.98669368]
[1641267726341,1.63087067,167.89,167.76,10.48669368]
[1641267726540,56.3568,167.93,167.77,1.42669368]
[1641267726744,2.63879395,167.9,167.77,27.39239368]
[1641267726940,2.63879395,167.9,167.77,28.15239368]
[1641267727142,2.63879395,167.9,167.78,1.42669368]
[1641267727343,2.63879395,167.9,167.78,1.92669368]
[1641267727546,2.63879395,167.9,167.78,2.18669368]
[1641267730744,2.63879395,167.9,167.79,1.42669368]
[1641267730944,2.63879395,167.9,167.79,2.18669368]
[1641267731346,2.63879395,167.9,167.8,1.42669368]
[1641267731546,2.63879395,167.9,167.8,1.68669368]
[1641267731751,2.63879395,167.9,167.8,2.18669368]
[1641267731947,2.63879395,167.9,167.81,1.42669368]
[1641267732151,2.63879395,167.9,167.82,22.85545634]
[1641267732348,2.63879395,167.9,167.82,23.35545634]
[1641267732550,2.63879395,167.9,167.82,25.04215002]
[1641267732948,2.63879395,167.9,167.82,2.18669368]
[1641267735680,2.63879395,167.9,167.82,0.76]
[1641267735879,2.63879395,167.9,167.82,0.26]
[1641267736080,2.63879395,167.9,167.8,77.4477]
[1641267736481,2.63879395,167.9,167.81,1.42669368]
[1641267736880,2.63879395,167.9,167.81,2.18669368]
[1641267737380,2.63879395,167.9,167.82,1.42669368]
[1641267737583,2.63879395,167.9,167.82,1.68669368]
[1641267737880,2.63879395,167.9,167.82,2.18669368]
[1641267738783,2.63879395,167.9,167.83,1.42669368]
[1641267738983,2.63879395,167.9,167.83,2.18669368]
[1641267739784,2.89879395,167.9,167.83,0.5]
[1641267739983,3.39879395,167.9,167.8,77.1877]
[1641267740384,3.39879395,167.9,167.8,78.61439368]
[1641267740982,3.39879395,167.9,167.8,78.87439368]
[1641267741188,2.63879395,167.9,167.8,78.87439368]
[1641267742185,56.4295,167.93,167.8,78.87439368]
[1641267742385,56.6895,167.93,167.8,78.87439368]
[1641267742788,47.8695,167.93,167.8,87.43439368]
[1641267743187,46.5052,167.93,167.8,87.43439368]
[1641267743585,46.5052,167.93,167.81,26.27]
[1641267743786,2.18900797,167.94,167.81,26.27]
[1641267743987,1.68900797,167.94,167.82,9.98669368]
[1641267744387,1.68900797,167.94,167.83,1.42669368]
[1641267744588,1.68900797,167.94,167.83,25.90499368]
[1641267744788,1.68900797,167.94,167.83,27.74679368]
[1641267744991,1.68900797,167.94,167.84,1.42669368]
[1641267745190,1.68900797,167.94,167.85,15.26097877]
[1641267745390,1.68900797,167.94,167.85,15.76097877]
[1641267745591,1.68900797,167.94,167.86,1.42669368]
[1641267745991,1.68900797,167.94,167.86,2.18669368]
[1641267746291,1.18900797,167.94,167.87,1.42669368]
[1641267746494,1.18900797,167.94,167.87,1.68669368]
[1641267746792,1.18900797,167.94,167.87,2.18669368]
[1641267746990,23.9272,167.95,167.87,2.18669368]
[1641267747190,23.9272,167.95,167.88,1.42669368]
[1641267747390,24.4272,167.95,167.88,1.92669368]
[1641267747591,24.4272,167.95,167.88,2.18669368]
[1641267747890,23.9272,167.95,167.88,2.18669368]
[1641267748091,2.61865361,167.94,167.88,0.76]
[1641267748494,2.61865361,167.94,167.88,1.42669368]
[1641267748693,2.61865361,167.94,167.88,2.18669368]
[1641267749496,2.11865361,167.94,167.88,2.18669368]
[1641267757402,2.11865361,167.94,167.88,0.76]
[1641267757602,2.11865361,167.94,167.88,0.5]
[1641267757804,2.11865361,167.94,167.86,25.0174]
[1641267757805,2.11865361,167.94,167.86,25.5174]
[1641267759907,2.11865361,167.94,167.87,1.42669368]
[1641267760106,2.11865361,167.94,167.87,1.68669368]
[1641267760309,2.11865361,167.94,167.87,2.18669368]
[1641267760508,2.11865361,167.94,167.88,1.42669368]
[1641267760708,2.11865361,167.94,167.87,0.76]
[1641267760910,2.61865361,167.94,167.86,0.76]
[1641267761110,2.11865361,167.94,167.85,17.44767245]
[1641267763237,2.11865361,167.94,167.85,15.76097877]
[1641267764136,2.37865361,167.94,167.85,15.76097877]
[1641267764537,2.11865361,167.94,167.85,15.76097877]
[1641267764937,2.11865361,167.94,167.85,16.02097877]
[1641267766540,2.37865361,167.94,167.85,16.02097877]
[1641267767740,2.37865361,167.94,167.85,0.76]
[1641267767941,2.37865361,167.94,167.85,0.26]
[1641267768142,2.37865361,167.94,167.83,26.9791]
[1641267768742,2.37865361,167.94,167.84,29.45480846]
[1641267768943,2.37865361,167.94,167.84,29.95480846]
[1641267769142,2.37865361,167.94,167.84,30.21480846]
[1641267770346,2.87865361,167.94,167.84,30.21480846]
[1641267770752,2.61865361,167.94,167.84,30.21480846]
[1641267771147,2.11865361,167.94,167.84,30.21480846]
[1641267773551,10.19087067,167.97,167.95,3.43515361]
[1641267773552,1.63087067,167.97,167.95,3.43515361]
[1641267773752,6.06439994,167.96,167.95,3.43515361]
[1641267773952,1.63087067,167.97,167.96,43.0]
[1641267774151,1.63087067,168.02,167.96,43.0]
[1641267774353,1.63087067,168.02,167.96,0.76]
[1641267774552,1.63087067,168.02,167.96,2.18669368]
[1641267774753,1.63087067,168.02,167.96,0.76]
[1641267774953,2.74070702,168.03,167.96,0.76]
[1641267775157,2.74070702,168.03,167.95,4.19515361]
[1641267776056,2.74070702,168.03,167.95,5.62184729]
[1641267777759,2.74070702,168.03,167.95,4.19515361]
[1641267778058,3.00070702,168.03,167.95,4.19515361]
[1641267778456,3.00070702,168.03,167.95,3.69515361]
[1641267781490,3.50070702,168.03,167.95,3.69515361]
[1641267782694,3.00070702,168.03,167.95,3.69515361]
[1641267783490,2.74070702,168.03,167.95,3.69515361]
[1641267784890,3.00070702,168.03,167.95,3.69515361]
[1641267785691,1.2535,168.04,167.95,3.69515361]
[1641267785893,1.7535,168.04,167.95,19.3979572]
[1641267786101,23.2961,168.05,167.96,1.42669368]
[1641267786495,23.2961,168.05,167.96,2.18669368]
[1641267786695,25.61170504,168.05,167.96,2.18669368]
[1641267786894,25.61170504,168.05,167.96,0.76]
[1641267787195,25.61170504,168.05,167.96,0.5]
[1641267787394,25.61170504,168.05,167.95,19.3979572]
[1641267787596,23.2961,168.05,167.95,19.3979572]
[1641267787893,23.2961,168.05,167.95,20.82465088]
[1641267788296,23.2961,168.05,167.95,29.38465088]
[1641267788696,25.45506666,168.05,167.95,29.38465088]
[1641267788896,2.15896666,168.05,167.95,29.38465088]
[1641267789899,2.15896666,168.05,167.95,27.9579572]
[1641267790301,2.15896666,168.05,167.95,12.75515361]
[1641267790502,2.15896666,168.05,167.95,12.49515361]
[1641267790706,2.15896666,168.05,167.95,13.92184729]
[1641267791904,2.15896666,168.05,167.95,12.75515361]
[1641267792506,2.15896666,168.05,167.95,36.20615361]
[1641267792906,0.21835166,167.97,167.95,36.20615361]
[1641267793106,0.21835166,167.97,167.96,6.06439994]
[1641267793510,0.21835166,167.97,167.96,0.5]
[1641267794105,0.21835166,167.97,167.95,3.93515361]
[1641267794507,0.21835166,167.97,167.96,7.49109362]
[1641267794707,0.21835166,167.97,167.96,6.06439994]
[1641267797210,0.21835166,167.97,167.95,3.43515361]
[1641267797409,0.21835166,167.97,167.96,6.06439994]
[1641267797608,0.21835166,167.97,167.96,6.32439994]
[1641267799712,0.21835166,167.97,167.96,25.21793643]
[1641267800110,0.21835166,167.97,167.96,25.71793643]
[1641267801411,0.21835166,167.97,167.96,6.82439994]
[1641267808524,0.21835166,167.97,167.96,15.68548923]
[1641267808725,9.8787,168.13,167.97,36.0]
[1641267808924,1.3353,168.11,167.98,24.7529]
[1641267809324,1.3353,168.11,167.98,25.5129]
[1641267809526,28.27172453,168.1,167.98,25.5129]
[1641267809928,29.03172453,168.1,167.98,25.5129]
[1641267810127,53.46542453,168.1,167.98,25.5129]
[1641267810930,53.46542453,168.1,167.98,0.76]
[1641267811129,53.46542453,168.1,167.97,9.32]
[1641267811930,53.46542453,168.1,167.98,23.4955]
[1641267812130,1.2581,168.09,167.98,23.4955]
[1641267812331,1.2581,168.09,167.98,24.2555]
[1641267812531,1.5181,168.09,167.98,24.2555]
[1641267814355,2.0181,168.09,167.98,24.2555]
[1641267817658,10.5781,168.09,167.95,3.43515361]
[1641267817857,2.53780655,168.07,167.95,3.93515361]
[1641267818058,24.202,168.06,167.95,3.43515361]
[1641267818460,24.962,168.06,167.95,3.43515361]
[1641267818658,26.3361,168.06,167.95,3.43515361]
[1641267819759,26.0761,168.06,167.95,3.43515361]
[1641267819962,25.5761,168.06,167.95,3.93515361]
[1641267820159,2.53780655,168.07,167.95,12.49515361]
[1641267820360,2.53780655,168.07,167.95,20.19615361]
[1641267820761,25.10347067,168.09,167.95,20.19615361]
[1641267820966,24.2326,168.09,167.96,1.2684]
[1641267821362,24.2326,168.09,167.96,2.0284]
[1641267821669,24.2326,168.09,167.96,26.4182]
[1641267821863,2.79356696,168.08,167.96,26.4182]
[1641267823266,3.55356696,168.08,167.96,26.4182]
[1641267823465,27.77546696,168.08,167.96,26.4182]
[1641267824269,27.27546696,168.08,167.96,26.4182]
[1641267824468,2.79356696,168.08,167.96,26.4182]
[1641267826175,26.54426696,168.08,167.96,26.4182]
[1641267826369,26.80426696,168.08,167.96,26.4182]
[1641267827370,1.3024,168.07,167.96,26.4182]
[1641267828170,28.65807554,168.06,167.96,26.4182]
[1641267828970,24.7157,168.05,167.96,26.4182]
[1641267829172,2.70372307,168.04,167.96,26.4182]
[1641267834584,2.70372307,168.04,167.96,26.1582]
[1641267835886,2.70372307,168.04,167.96,26.4182]
[1641267839493,2.70372307,168.04,167.96,31.7592]
[1641267840094,2.70372307,168.04,167.96,40.3192]
[1641267843418,2.70372307,168.04,167.96,40.0592]
[1641267844619,2.70372307,168.04,167.96,34.7182]
[1641267844921,2.70372307,168.04,167.96,34.9782]
[1641267847428,4.05942307,168.04,167.95,3.43515361]
[1641267847622,4.81942307,168.04,167.95,3.43515361]
[1641267847822,13.37942307,168.04,167.95,3.43515361]
[1641267848425,13.11942307,168.04,167.95,3.43515361]
[1641267848825,13.11942307,168.04,167.95,3.93515361]
[1641267849027,22.884,168.03,167.95,4.19515361]
[1641267856537,9.858,168.08,167.95,4.19515361]
[1641267856837,25.3391,168.07,167.95,14.18184729]
[1641267857037,25.5991,168.07,167.95,12.75515361]
[1641267857237,25.5991,168.07,167.96,24.8984]
[1641267857437,25.5991,168.07,167.96,25.3984]
[1641267857642,2.79640601,168.06,167.97,13.44630695]
[1641267857839,2.79640601,168.06,167.97,13.94630695]
[1641267858037,2.79640601,168.06,167.97,14.20630695]
[1641267861772,2.79640601,168.06,167.97,22.76630695]
[1641267862073,2.79640601,168.06,167.97,24.19300063]
[1641267862774,2.79640601,168.06,167.97,23.69300063]
[1641267863372,2.79640601,168.06,167.97,22.26630695]
[1641267864174,2.79640601,168.06,167.97,22.76630695]
[1641267866781,2.79640601,168.06,167.97,22.50630695]
[1641267867984,2.79640601,168.06,167.97,22.76630695]
[1641267873286,2.79640601,168.06,167.97,22.50630695]
[1641267873888,3.05640601,168.06,167.97,22.50630695]
[1641267874296,24.9494,168.05,167.97,0.5]
[1641267874692,24.9494,168.05,167.96,26.9253]
[1641267875093,26.2881,168.05,167.96,26.9253]
[1641267876895,26.2881,168.05,167.96,1.7669]
[1641267877096,26.5481,168.05,167.96,0.5]
[1641267877299,26.5481,168.05,167.95,3.43515361]
[1641267877499,27.0481,168.05,167.95,3.43515361]
[1641267877923,35.6081,168.05,167.95,3.43515361]
[1641267879525,35.6081,168.05,167.95,3.69515361]
[1641267883229,35.6081,168.05,167.95,3.43515361]
[1641267884329,44.542,168.05,167.95,3.43515361]
[1641267885732,45.96869368,168.05,167.95,3.43515361]
[1641267886632,37.03479368,168.05,167.95,3.43515361]
[1641267886835,35.6081,168.05,167.95,4.19515361]
[1641267887035,43.5774,168.05,167.95,4.19515361]
[1641267887234,26.2881,168.05,167.95,11.71515361]
[1641267888036,2.63142348,168.04,167.95,11.71515361]
[1641267891738,2.63142348,168.04,167.95,11.45515361]
[1641267893139,2.63142348,168.04,167.95,11.71515361]
[1641267896343,2.63142348,168.04,167.95,4.19515361]
[1641267896741,26.2881,168.05,167.95,4.19515361]
[1641267896742,26.2881,168.05,167.95,10.68815361]
[1641267897844,29.31393363,168.05,167.95,4.19515361]
[1641267903754,3.02583363,168.05,167.95,4.19515361]
[1641267903974,25.8231,168.08,167.95,3.93515361]
[1641267904174,27.1255,168.08,167.97,19.18669178]
[1641267904376,27.1255,168.08,167.97,19.68669178]
[1641267904774,27.1255,168.08,167.97,21.00619178]
[1641267904978,29.66067362,168.08,167.97,21.00619178]
[1641267905278,29.66067362,168.08,167.97,22.43288546]
[1641267905478,29.66067362,168.08,167.98,24.3934]
[1641267905876,29.66067362,168.08,167.98,25.1534]
[1641267906076,29.92067362,168.08,167.98,25.1534]
[1641267908178,29.66067362,168.08,167.98,25.1534]
[1641267908378,29.92067362,168.08,167.98,25.1534]
[1641267908779,29.66067362,168.08,167.98,25.1534]
[1641267908978,29.92067362,168.08,167.98,25.1534]
[1641267909179,29.66067362,168.08,167.98,25.1534]
[1641267911679,29.92067362,168.08,167.98,25.1534]
[1641267912079,29.66067362,168.08,167.98,25.1534]
[1641267912280,29.92067362,168.08,167.98,25.1534]
[1641267913479,29.66067362,168.08,167.98,25.1534]
[1641267913681,29.66067362,168.08,167.98,0.5]
[1641267913880,38.22067362,168.08,167.95,3.93515361]
[1641267914281,38.72067362,168.08,167.95,3.93515361]
[1641267914882,38.98067362,168.08,167.95,3.93515361]
[1641267915085,38.98067362,168.08,167.95,4.19515361]
[1641267916288,38.98067362,168.08,167.96,23.8813]
[1641267916489,38.98067362,168.08,167.96,24.1413]
[1641267916789,38.98067362,168.08,167.96,0.76]
[1641267917189,38.98067362,168.08,167.96,0.5]
[1641267917389,38.98067362,168.08,167.95,4.19515361]
[1641267921293,38.98067362,168.08,167.96,24.7948]
[1641267921593,38.98067362,168.08,167.96,25.0548]
[1641267921793,38.98067362,168.08,167.96,25.5548]
[1641267923196,38.22067362,168.08,167.96,25.5548]
[1641267923399,38.72067362,168.08,167.96,25.5548]
[1641267923600,38.72067362,168.08,167.96,26.8493]
[1641267924001,38.72067362,168.08,167.97,19.32722375]
[1641267924499,38.98067362,168.08,167.97,20.08722375]
[1641267924698,38.98067362,168.08,167.97,0.76]
[1641267925099,38.98067362,168.08,167.97,0.26]
[1641267925298,38.98067362,168.08,167.96,26.8493]
[1641267927604,38.48067362,168.08,167.96,26.8493]
[1641267927803,38.98067362,168.08,167.96,26.8493]
[1641267932727,38.98067362,168.08,167.96,33.6263]
[1641267942834,25.8275,168.08,167.97,9.98669368]
[1641267943034,24.5251,168.08,167.97,10.24669368]
[1641267943234,24.5251,168.08,167.97,10.74669368]
[1641267943436,1.63087067,168.13,167.98,26.02649368]
[1641267943635,1.2598,168.12,167.99,8.56]
[1641267943841,28.03901525,168.11,167.99,9.06]
[1641267944038,28.03901525,168.11,168.0,1.2777]
[1641267944236,22.7889,168.1,168.0,24.2089]
[1641267944437,22.7889,168.1,168.0,24.9689]
[1641267944638,1.3334,168.09,168.0,24.9689]
[1641267945440,1.3334,168.09,168.0,23.6912]
[1641267945640,1.5934,168.09,168.0,23.6912]
[1641267946942,2.0934,168.09,168.0,23.1912]
[1641267948745,2.0934,168.09,168.0,0.26]
[1641267948971,2.0934,168.09,167.98,2.0631]
[1641267950046,2.0934,168.09,167.98,0.5]
[1641267950447,8.56,168.08,167.96,75.8602]
[1641267950646,24.1865,168.07,167.95,3.43515361]
[1641267950849,8.56,168.06,167.95,3.43515361]
[1641267951048,4.38365519,168.05,167.95,3.43515361]
[1641267951249,46.76960945,168.04,167.95,3.43515361]
[1641267951449,47.26960945,168.04,167.95,3.43515361]
[1641267951652,47.52960945,168.04,167.95,3.43515361]
[1641267951848,47.52960945,168.04,167.95,3.93515361]
[1641267952049,47.52960945,168.04,167.95,4.19515361]
[1641267952759,47.02960945,168.04,167.95,4.19515361]
[1641267953850,47.02960945,168.04,167.96,1.42669368]
[1641267954050,47.02960945,168.04,167.96,1.68669368]
[1641267954452,47.02960945,168.04,167.96,0.26]
[1641267954851,47.02960945,168.04,167.95,4.19515361]
[1641267955251,47.02960945,168.04,167.95,5.62184729]
[1641267955456,47.02960945,168.04,167.95,4.19515361]
[1641267955855,47.52960945,168.04,167.95,4.19515361]
[1641267956156,47.02960945,168.04,167.95,4.19515361]
[1641267957183,47.52960945,168.04,167.95,3.69515361]
[1641267957980,47.52960945,168.04,167.95,3.43515361]
[1641267959384,47.52960945,168.04,167.95,3.69515361]
[1641267959781,47.52960945,168.04,167.95,3.43515361]
[1641267960984,47.52960945,168.04,167.95,3.69515361]
[1641267961986,47.52960945,168.04,167.95,3.43515361]
[1641267964987,47.52960945,168.04,167.95,3.69515361]
[1641267968390,8.56,168.03,167.95,3.69515361]
[1641267968591,8.82,168.03,167.95,3.69515361]